fUST/lending_fUST_20250605
["ID","MTS","AMOUNT","RATE_DAILY","PERIOD"]
[364359641,1749079847241,-965.7,0.00023197,2]
[364359643,1749079847250,-575.21,0.00023197,2]
[364359645,1749079847259,-526.9,0.00023197,2]
[364359647,1749079847268,-506.35,0.00023197,2]
[364359649,1749079847277,-440.0,0.00023198,2]
[364359651,1749079847286,-1091.90353123,0.0002321,8]
[364359653,1749079847295,-159.40628424,0.00023233,2]
[364359655,1749079847304,-159.40589682,0.00023233,2]
[364359657,1749079847313,-162.96162869,0.00023233,2]
[364359659,1749079847323,-600.0,0.0002325,2]
[364359661,1749079847332,-364.5816698,0.0002326,2]
[364359663,1749079847341,-364.5816698,0.0002326,2]
[364359665,1749079847353,-405.0,0.00023277,2]
[364359667,1749079847364,-962.0,0.00023277,2]
[364359669,1749079847373,-1050.0,0.0002328,2]
[364359671,1749079847382,-200.0,0.00023287,2]
[364359673,1749079847391,-200.0,0.00023287,2]
[364359675,1749079847400,-200.0,0.00023287,2]
[364359677,1749079847409,-200.0,0.00023287,2]
[364359679,1749079847418,-200.0,0.00023287,2]
[364359683,1749079847450,-200.0,0.00023287,2]
[364359685,1749079847460,-200.0,0.00023287,2]
[364359687,1749079847469,-200.0,0.00023287,2]
[364359689,1749079847478,-200.0,0.00023287,2]
[364359691,1749079847487,-200.0,0.00023287,2]
[364359693,1749079847497,-200.0,0.00023287,2]
[364359695,1749079847506,-200.0,0.00023287,2]
[364359697,1749079847515,-200.0,0.00023287,2]
[364359699,1749079847524,-200.0,0.00023287,2]
[364359701,1749079847534,-200.0,0.00023287,2]
[364359703,1749079847543,-200.0,0.00023287,2]
[364359705,1749079847552,-200.0,0.00023287,2]
[364359707,1749079847561,-200.0,0.00023287,2]
[364359709,1749079847571,-200.0,0.00023287,2]
[364359711,1749079847580,-200.0,0.00023287,2]
[364359713,1749079847589,-1300.0,0.00023356,2]
[364359715,1749079847598,-1091.90353123,0.00023452,9]
[364359717,1749079847607,-1419.89,0.0002347,2]
[364359719,1749079847616,-498.03,0.0002347,2]
[364359721,1749079847626,-1015.47147986,0.0002347,2]
[364359723,1749079847635,-627.99,0.00023471,2]
[364359725,1749079847644,-1317.35148637,0.00023471,2]
[364359727,1749079847654,-965.7,0.00023471,2]
[364359729,1749079847663,-575.33,0.00023471,2]
[364359731,1749079847672,-526.93,0.00023471,2]
[364359733,1749079847681,-506.38320405,0.00023471,2]
[364359735,1749079847690,-257.05092487,0.00023472,2]
[364359737,1749079847699,-600.0,0.00023492,2]
[364359739,1749079847708,-4057.78858513,0.000235,2]
[364359741,1749079847717,-68712.61032949,0.000235,2]
[364359743,1749079847726,-910.39,0.000235,7]
[364359745,1749079847735,-159.40628424,0.00023562,2]
[364359747,1749079847744,-159.40589682,0.00023562,2]
[364359749,1749079847757,-162.96162869,0.00023562,2]
[364359750,1749079847766,-151.0,0.000236,10]
[364359752,1749079847775,-5000.0,0.00023656,2]
[364359754,1749079847784,-1091.90353123,0.00023693,9]
[364359756,1749079847793,-1238.32,0.000237,7]
[364359758,1749079847805,-34152.15,0.000237,2]
[364359760,1749079847814,-937.983197,0.00023734,3]
[364359762,1749079847822,-985.1695979,0.00023753,3]
[364359763,1749079847833,-500.0,0.00023773,2]
[364359764,1749079847842,-200812.54112584,0.000238,3]
[364359765,1749079847852,-151.0,0.000238,7]
[364359766,1749079847861,-159.40589682,0.00023863,2]
[364359767,1749079847872,-162.96162869,0.00023863,2]
[364359768,1749079847881,-320.87790184,0.000239,2]
[364359769,1749079847891,-1108.630773,0.000239,2]
[364359770,1749079847899,-215.0738,0.00023929,2]
[364359771,1749079847908,-1091.90353123,0.00023934,10]
[364359772,1749079847918,-471.81983633,0.00023954,2]
[364359773,1749079847927,-800.0,0.00023959,2]
[364359774,1749079847936,-800.0,0.00023961,2]
[364359775,1749079847945,-12836.55681071,0.00023995,2]
[364359776,1749079847954,-9156.75165203,0.00024,2]
[364359777,1749079847966,-410.68536903,0.00024,2]
[364359778,1749079847975,-800.0,0.00024024,2]
[364359779,1749079847984,-1297.06463097,0.00024056,2]
[364359907,1749080019421,-440.0,0.00017168,2]
[364359908,1749080019955,-440.0,0.00017168,2]
[364359909,1749080019982,-440.0,0.00017168,2]
[364359910,1749080020011,-289.92,0.00017168,2]
[364359911,1749080020035,-300.0,0.00017168,2]
[364359912,1749080020059,-440.0,0.00017168,2]
[364359913,1749080020084,-440.0,0.00017168,2]
[364359914,1749080020108,-430.0,0.00017168,2]
[364359915,1749080020133,-440.0,0.00017168,2]
[364359916,1749080020157,-440.0,0.00017168,2]
[364359917,1749080020181,-440.0,0.00017168,2]
[364359918,1749080020207,-450.0,0.00017168,2]
[364359919,1749080020229,-440.0,0.00017168,2]
[364359920,1749080020257,-440.0,0.00017169,2]
[364359921,1749080020283,-440.0,0.00017169,2]
[364359922,1749080020306,-450.0,0.00017169,2]
[364359923,1749080020328,-440.0,0.00017169,2]
[364359924,1749080020350,-430.0,0.00017169,2]
[364359925,1749080020376,-440.0,0.00017169,2]
[364359926,1749080020403,-440.0,0.00017169,2]
[364359927,1749080020426,-440.0,0.00017169,2]
[364359928,1749080020448,-440.0,0.00017169,2]
[364359929,1749080020473,-440.0,0.00017169,2]
[364359930,1749080020495,-440.0,0.00017169,2]
[364359931,1749080020518,-500.0,0.00017169,2]
[364359932,1749080020545,-500.0,0.00017169,2]
[364359933,1749080020567,-500.0,0.00017169,2]
[364359934,1749080020593,-440.0,0.00017169,2]
[364359935,1749080020620,-440.0,0.00017169,2]
[364359936,1749080020643,-269.97000075,0.00017169,2]
[364359937,1749080020668,-440.0,0.00017169,2]
[364359938,1749080020692,-430.0,0.00017169,2]
[364359939,1749080020714,-440.0,0.00017169,2]
[364359940,1749080020737,-340.0,0.00017169,2]
[364359941,1749080020759,-430.0,0.00017169,2]
[364359942,1749080020783,-440.0,0.00017169,2]
[364359943,1749080020808,-440.0,0.00017169,2]
[364359944,1749080020830,-430.0,0.00017169,2]
[364359945,1749080020994,-340.0,0.00017169,2]
[364359946,1749080021018,-350.10999925,0.00017169,2]
[364359948,1749080237084,659.1,0.00025,120]
[364359950,1749080392482,-300.0,0.00017167,2]
[364359951,1749080392506,-1200.0,0.00017167,2]
[364359952,1749080392527,-300.0,0.00017167,2]
[364359953,1749080392550,-440.0,0.00017168,2]
[364359954,1749080392574,-440.0,0.00017168,2]
[364359955,1749080392599,-440.0,0.00017168,2]
[364359956,1749080392623,-440.0,0.00017168,2]
[364359957,1749080392648,-440.0,0.00017168,2]
[364359958,1749080392673,-440.0,0.00017168,2]
[364359959,1749080392697,-440.0,0.00017168,2]
[364359960,1749080392720,-440.0,0.00017168,2]
[364359961,1749080392744,-440.0,0.00017168,2]
[364359962,1749080392768,-440.0,0.00017168,2]
[364359963,1749080392789,-430.0,0.00017168,2]
[364359964,1749080392812,-440.0,0.00017168,2]
[364359965,1749080392835,-440.0,0.00017168,2]
[364359966,1749080392859,-430.0,0.00017168,2]
[364359967,1749080392882,-440.0,0.00017168,2]
[364359968,1749080392904,-440.0,0.00017168,2]
[364359969,1749080392927,-440.0,0.00017168,2]
[364359970,1749080392950,-440.0,0.00017168,2]
[364359971,1749080392973,-440.0,0.00017168,2]
[364359972,1749080392995,-440.0,0.00017168,2]
[364359973,1749080393020,-440.0,0.00017168,2]
[364359974,1749080393048,-440.0,0.00017168,2]
[364359975,1749080393073,-440.0,0.00017168,2]
[364359976,1749080393096,-440.0,0.00017168,2]
[364359977,1749080393121,-440.0,0.00017168,2]
[364359978,1749080393143,-440.0,0.00017168,2]
[364359979,1749080393167,-440.0,0.00017168,2]
[364359980,1749080393192,-440.0,0.00017168,2]
[364359981,1749080393216,-440.0,0.00017168,2]
[364359982,1749080393239,-440.0,0.00017168,2]
[364359983,1749080393264,-440.0,0.00017168,2]
[364359984,1749080393288,-573.49,0.00017168,2]
[364359985,1749080393313,-440.0,0.00017168,2]
[364359986,1749080393337,-1597.79,0.00017168,2]
[364359987,1749080393361,-440.0,0.00017168,2]
[364359988,1749080393387,-1748.93,0.00017168,2]
[364359989,1749080393410,-430.0,0.00017168,2]
[364359990,1749080393433,-440.0,0.00017168,2]
[364359991,1749080393457,-440.0,0.00017168,2]
[364359992,1749080393482,-440.0,0.00017168,2]
[364359993,1749080393507,-448.35,0.00017168,2]
[364359994,1749080393530,-440.0,0.00017168,2]
[364359995,1749080393553,-440.0,0.00017168,2]
[364359996,1749080393574,-354.97,0.00017168,2]
[364359997,1749080393596,-440.0,0.00017168,2]
[364359998,1749080393620,-440.0,0.00017168,2]
[364359999,1749080393643,-440.0,0.00017168,2]
[364360000,1749080393666,-440.0,0.00017169,2]
[364360001,1749080393688,-430.0,0.00017169,2]
[364360002,1749080393709,-440.0,0.00017169,2]
[364360003,1749080393731,-440.0,0.00017169,2]
[364360004,1749080393752,-430.0,0.00017169,2]
[364360005,1749080393774,-430.0,0.00017169,2]
[364360006,1749080393796,-165.34009342,0.00017169,2]
[364360007,1749080393818,-261.60377987,0.00017169,2]
[364360008,1749080393840,-430.0,0.00017169,2]
[364360009,1749080393863,-500.0,0.00017169,2]
[364360010,1749080393885,-500.0,0.00017169,2]
[364360011,1749080393908,-500.0,0.00017169,2]
[364360012,1749080393931,-440.0,0.00017169,2]
[364360013,1749080393952,-430.0,0.00017169,2]
[364360014,1749080393974,-440.0,0.00017169,2]
[364360015,1749080393996,-440.0,0.00017169,2]
[364360016,1749080394018,-440.0,0.00017169,2]
[364360017,1749080394043,-440.0,0.00017169,2]
[364360018,1749080394065,-430.0,0.00017169,2]
[364360019,1749080394087,-440.0,0.00017169,2]
[364360020,1749080394110,-440.0,0.00017169,2]
[364360021,1749080394133,-440.0,0.00017169,2]
[364360022,1749080394154,-440.0,0.00017169,2]
[364360023,1749080394176,-440.0,0.00017169,2]
[364360024,1749080394197,-430.0,0.00017169,2]
[364360025,1749080394220,-430.0,0.00017169,2]
[364360026,1749080394242,-430.0,0.00017169,2]
[364360027,1749080394264,-430.0,0.00017169,2]
[364360028,1749080394287,-450.0,0.00017169,2]
[364360029,1749080394309,-430.0,0.00017169,2]
[364360030,1749080394331,-440.0,0.00017169,2]
[364360031,1749080394354,-430.0,0.00017169,2]
[364360032,1749080394376,-440.0,0.00017169,2]
[364360033,1749080394398,-296.87,0.00017169,2]
[364360034,1749080394420,-430.0,0.00017169,2]
[364360035,1749080394444,-162.65612671,0.00017169,2]
[364360036,1749080419735,1349.03,0.00025,120]
[364360037,1749080447102,-430.0,0.00017167,2]
[364360038,1749080447131,-320.0,0.00017167,2]
[364360039,1749080447156,-440.0,0.00017167,2]
[364360040,1749080447184,-430.0,0.00017167,2]
[364360041,1749080447212,-529.10878307,0.00017167,2]
[364360042,1749080447242,-440.0,0.00017167,2]
[364360043,1749080447271,-440.0,0.00017167,2]
[364360044,1749080447299,-440.0,0.00017168,2]
[364360045,1749080447327,-440.0,0.00017168,2]
[364360046,1749080447353,-378.95621755,0.00017168,2]
[364360047,1749080447380,-385.0,0.00017168,2]
[364360048,1749080447408,-300.0,0.00017168,2]
[364360049,1749080447439,-440.0,0.00017168,2]
[364360050,1749080447473,-440.0,0.00017168,2]
[364360051,1749080447502,-733.35,0.00017168,2]
[364360052,1749080447527,-400.0,0.00017168,2]
[364360053,1749080447552,-290.4660877,0.00017169,2]
[364360054,1749080447577,-300.0,0.00017169,2]
[364360055,1749080447603,-430.0,0.00017169,2]
[364360056,1749080447630,-430.0,0.00017169,2]
[364360057,1749080447656,-430.0,0.00017169,2]
[364360058,1749080447683,-440.0,0.00017169,2]
[364360059,1749080447708,-430.0,0.00017169,2]
[364360060,1749080447733,-440.0,0.00017169,2]
[364360061,1749080447758,-440.0,0.00017169,2]
[364360062,1749080447784,-440.0,0.00017169,2]
[364360063,1749080447809,-440.0,0.00017169,2]
[364360064,1749080447834,-430.0,0.00017169,2]
[364360065,1749080447860,-440.0,0.00017169,2]
[364360066,1749080447892,-440.0,0.00017169,2]
[364360067,1749080447918,-500.0,0.00017169,2]
[364360068,1749080447946,-430.0,0.00017169,2]
[364360069,1749080447971,-430.0,0.00017169,2]
[364360070,1749080448162,-440.0,0.00017169,2]
[364360071,1749080448194,-440.0,0.00017169,2]
[364360072,1749080448217,-440.0,0.00017169,2]
[364360073,1749080448240,-440.0,0.00017169,2]
[364360074,1749080448264,-430.0,0.00017169,2]
[364360075,1749080448288,-440.0,0.00017169,2]
[364360076,1749080448311,-440.0,0.00017169,2]
[364360077,1749080448333,-440.0,0.00017169,2]
[364360078,1749080448356,-440.0,0.00017169,2]
[364360079,1749080448379,-430.0,0.00017169,2]
[364360080,1749080448403,-440.0,0.00017169,2]
[364360081,1749080448426,-440.0,0.00017169,2]
[364360082,1749080448449,-440.0,0.00017169,2]
[364360083,1749080448471,-133.11891168,0.00017169,2]
[364360085,1749080474331,3278.49340797,0.00025,120]
[364360086,1749080513524,-440.0,0.00017167,2]
[364360087,1749080513550,-305.01551178,0.00017167,2]
[364360088,1749080513574,-440.0,0.00017167,2]
[364360089,1749080513596,-440.0,0.00017167,2]
[364360090,1749080513621,-440.0,0.00017167,2]
[364360091,1749080513645,-430.0,0.00017167,2]
[364360092,1749080513668,-440.0,0.00017168,2]
[364360093,1749080513704,-300.0,0.00017168,2]
[364360094,1749080513730,-440.0,0.00017168,2]
[364360095,1749080513756,-440.0,0.00017168,2]
[364360096,1749080513782,-440.0,0.00017168,2]
[364360097,1749080513805,-235.79208843,0.00017168,2]
[364360098,1749080513829,-433.4971624,0.00017168,2]
[364360099,1749080513854,-440.0,0.00017168,2]
[364360100,1749080513878,-440.0,0.00017168,2]
[364360101,1749080513902,-440.0,0.00017168,2]
[364360102,1749080513925,-440.0,0.00017168,2]
[364360103,1749080513953,-916.06,0.00017168,2]
[364360104,1749080513976,-430.0,0.00017168,2]
[364360105,1749080514002,-480.18,0.00017168,2]
[364360106,1749080514027,-173.44922241,0.00017169,2]
[364360107,1749080514052,-430.0,0.00017169,2]
[364360108,1749080514080,-430.0,0.00017169,2]
[364360109,1749080514105,-401.6623163,0.00017169,2]
[364360110,1749080514129,-326.02652564,0.00017169,2]
[364360111,1749080514155,-440.0,0.00017169,2]
[364360112,1749080514179,-440.0,0.00017169,2]
[364360113,1749080514205,-440.0,0.00017169,2]
[364360114,1749080514230,-421.09409967,0.00017169,2]
[364360115,1749080514253,-440.0,0.00017169,2]
[364360116,1749080514277,-440.0,0.00017169,2]
[364360117,1749080514300,-430.0,0.00017169,2]
[364360118,1749080514324,-522.20678966,0.00017169,2]
[364360119,1749080514348,-440.0,0.00017169,2]
[364360120,1749080514374,-430.0,0.00017169,2]
[364360121,1749080514399,-440.0,0.00017169,2]
[364360122,1749080514423,-430.0,0.00017169,2]
[364360123,1749080514446,-440.0,0.00017169,2]
[364360124,1749080514643,-450.0,0.00017169,2]
[364360125,1749080514668,-450.0,0.00017169,2]
[364360126,1749080514690,-430.0,0.00017169,2]
[364360127,1749080514714,-430.0,0.00017169,2]
[364360128,1749080514737,-433.6077534,0.00017169,2]
[364360129,1749080514760,-430.0,0.00017169,2]
[364360130,1749080514783,-430.0,0.00017169,2]
[364360131,1749080514809,-440.0,0.00017169,2]
[364360132,1749080514834,-440.0,0.00017169,2]
[364360133,1749080514857,-450.0,0.00017169,2]
[364360134,1749080514879,-430.0,0.00017169,2]
[364360135,1749080514904,-430.0,0.00017169,2]
[364360136,1749080514930,-440.0,0.00017169,2]
[364360137,1749080514955,-440.0,0.00017169,2]
[364360138,1749080514978,-440.0,0.00017169,2]
[364360139,1749080515002,-430.0,0.00017169,2]
[364360140,1749080515024,-440.0,0.00017169,2]
[364360141,1749080515047,-430.0,0.00017169,2]
[364360142,1749080515074,-500.0,0.00017169,2]
[364360143,1749080515098,-311.40853031,0.00017169,2]
[364360144,1749080582885,5000.0,0.0002422,120]
[364360145,1749080601635,-300.0,0.00017166,2]
[364360146,1749080601662,-2375.8,0.00017167,2]
[364360147,1749080601687,-446.99,0.00017167,2]
[364360148,1749080601710,-534.07313543,0.00017167,2]
[364360149,1749080601734,-440.0,0.00017167,2]
[364360150,1749080601757,-440.0,0.00017167,2]
[364360151,1749080601780,-440.0,0.00017167,2]
[364360152,1749080601802,-440.0,0.00017167,2]
[364360153,1749080601969,-440.0,0.00017167,2]
[364360154,1749080601995,-143.13686457,0.00017167,2]
[364360156,1749080654302,287.098045,0.00013699,2]
[364360157,1749080661592,-300.0,0.00017166,2]
[364360158,1749080661617,-296.86313543,0.00017167,2]
[364360159,1749080661641,-1376.83,0.00017167,2]
[364360160,1749080661664,-440.0,0.00017167,2]
[364360161,1749080661687,-2354.27,0.00017167,2]
[364360162,1749080661711,-2232.03686457,0.00017167,2]
[364360186,1749080840566,9770.7,0.00016,30]
[364360226,1749081032864,-300.0,0.00017166,2]
[364360273,1749081033376,-1200.0,0.00017166,2]
[364360275,1749081033387,-420.0,0.00017166,2]
[364360277,1749081033397,-500.0,0.00017167,2]
[364360279,1749081033407,-440.0,0.00017167,2]
[364360282,1749081033417,-440.0,0.00017167,2]
[364360284,1749081033426,-470.0,0.00017167,2]
[364360286,1749081033435,-440.0,0.00017167,2]
[364360288,1749081033445,-470.0,0.00017167,2]
[364360290,1749081033455,-402.54833888,0.00017167,2]
[364360292,1749081033465,-404.0858259,0.00017167,2]
[364360294,1749081033473,-440.0,0.00017167,2]
[364360295,1749081033482,-217.18781882,0.00017167,2]
[364360297,1749081033492,-440.0,0.00017167,2]
[364360299,1749081033501,-440.0,0.00017167,2]
[364360301,1749081033511,-470.0,0.00017167,2]
[364360303,1749081033520,-440.0,0.00017167,2]
[364360305,1749081033531,-440.0,0.00017167,2]
[364360307,1749081033541,-530.0,0.00017167,2]
[364360309,1749081033551,-440.0,0.00017167,2]
[364360311,1749081033560,-430.0,0.00017167,2]
[364360313,1749081033569,-440.0,0.00017167,2]
[364360315,1749081033579,-440.0,0.00017167,2]
[364360317,1749081033588,-440.0,0.00017167,2]
[364360319,1749081033598,-500.0,0.00017167,2]
[364360321,1749081033607,-440.0,0.00017167,2]
[364360323,1749081033617,-440.0,0.00017167,2]
[364360325,1749081033627,-458.2,0.00017167,2]
[364360327,1749081033636,-500.0,0.00017167,2]
[364360329,1749081033646,-701.71,0.00017167,2]
[364360331,1749081033656,-500.0,0.00017167,2]
[364360333,1749081033665,-440.0,0.00017167,2]
[364360335,1749081033675,-440.0,0.00017167,2]
[364360337,1749081033685,-440.0,0.00017167,2]
[364360339,1749081033694,-440.0,0.00017167,2]
[364360341,1749081033703,-440.0,0.00017167,2]
[364360343,1749081033712,-440.0,0.00017167,2]
[364360345,1749081033722,-440.0,0.00017167,2]
[364360347,1749081033731,-440.0,0.00017167,2]
[364360349,1749081033740,-440.0,0.00017167,2]
[364360351,1749081033750,-440.0,0.00017167,2]
[364360353,1749081033759,-440.0,0.00017167,2]
[364360355,1749081033768,-1464.11,0.00017167,2]
[364360357,1749081033777,-192.99,0.00017167,2]
[364360359,1749081033787,-282.71,0.00017167,2]
[364360361,1749081033796,-2560.82,0.00017167,2]
[364360363,1749081033806,-2762.2,0.00017167,2]
[364360365,1749081033815,-440.0,0.00017167,2]
[364360367,1749081033825,-420.0,0.00017167,2]
[364360369,1749081033834,-440.0,0.00017167,2]
[364360371,1749081033844,-704.83,0.00017167,2]
[364360373,1749081033853,-497.49,0.00017167,2]
[364360375,1749081033862,-440.0,0.00017167,2]
[364360377,1749081033872,-440.0,0.00017167,2]
[364360379,1749081033881,-1529.84,0.00017167,2]
[364360381,1749081033890,-440.0,0.00017167,2]
[364360383,1749081033900,-440.0,0.00017167,2]
[364360385,1749081033909,-440.0,0.00017167,2]
[364360387,1749081033918,-440.0,0.00017167,2]
[364360389,1749081033928,-440.0,0.00017167,2]
[364360391,1749081033937,-440.0,0.00017167,2]
[364360393,1749081033947,-440.0,0.00017167,2]
[364360395,1749081033956,-440.0,0.00017167,2]
[364360397,1749081033965,-430.0,0.00017167,2]
[364360399,1749081033975,-440.0,0.00017167,2]
[364360401,1749081033985,-440.0,0.00017167,2]
[364360403,1749081033994,-316.93558151,0.00017167,2]
[364360405,1749081034003,-440.0,0.00017167,2]
[364360407,1749081034013,-440.0,0.00017167,2]
[364360409,1749081034022,-440.0,0.00017167,2]
[364360411,1749081034034,-440.0,0.00017167,2]
[364360413,1749081034044,-440.0,0.00017167,2]
[364360415,1749081034053,-440.0,0.00017167,2]
[364360417,1749081034063,-1553.6,0.00017167,2]
[364360419,1749081034072,-440.0,0.00017167,2]
[364360421,1749081034082,-440.0,0.00017167,2]
[364360423,1749081034092,-430.0,0.00017167,2]
[364360425,1749081034102,-405.68561956,0.00017167,2]
[364360427,1749081034112,-440.0,0.00017167,2]
[364360429,1749081034123,-440.0,0.00017167,2]
[364360431,1749081034133,-440.0,0.00017167,2]
[364360433,1749081034142,-402.67606541,0.00017167,2]
[364360435,1749081034152,-575.03,0.00017167,2]
[364360437,1749081034162,-440.0,0.00017167,2]
[364360439,1749081034173,-440.0,0.00017167,2]
[364360441,1749081034183,-420.0,0.00017167,2]
[364360443,1749081034192,-440.0,0.00017167,2]
[364360445,1749081034201,-309.83253736,0.00017167,2]
[364360447,1749081034211,-440.0,0.00017167,2]
[364360449,1749081034220,-440.0,0.00017167,2]
[364360451,1749081034230,-440.0,0.00017167,2]
[364360453,1749081034239,-2614.29,0.00017167,2]
[364360455,1749081034248,-450.0,0.00017167,2]
[364360457,1749081034258,-440.0,0.00017167,2]
[364360459,1749081034267,-440.0,0.00017167,2]
[364360461,1749081034277,-3435.30154762,0.00017167,2]
[364360463,1749081034287,-430.0,0.00017168,2]
[364360465,1749081034296,-430.0,0.00017168,2]
[364360467,1749081034306,-440.0,0.00017168,2]
[364360469,1749081034318,-580.58430178,0.00017168,2]
[364360471,1749081034328,-440.0,0.00017168,2]
[364360472,1749081034338,-440.0,0.00017168,2]
[364360473,1749081034348,-500.0,0.00017168,2]
[364360474,1749081034358,-430.0,0.00017168,2]
[364360475,1749081034367,-430.0,0.00017168,2]
[364360476,1749081034377,-430.0,0.00017168,2]
[364360477,1749081034386,-440.0,0.00017168,2]
[364360478,1749081034397,-500.0,0.00017168,2]
[364360479,1749081034408,-500.0,0.00017168,2]
[364360480,1749081034417,-453.83857874,0.00017168,2]
[364360481,1749081034427,-440.0,0.00017168,2]
[364360482,1749081034437,-440.0,0.00017168,2]
[364360483,1749081034447,-320.0,0.00017168,2]
[364360484,1749081034456,-701.71,0.00017168,2]
[364360485,1749081034467,-701.71,0.00017168,2]
[364360486,1749081034477,-435.48034986,0.00017168,2]
[364360487,1749081034486,-403.91097545,0.00017168,2]
[364360488,1749081034496,-354.40250561,0.00017168,2]
[364360489,1749081034506,-440.0,0.00017168,2]
[364360490,1749081034514,-440.0,0.00017168,2]
[364360491,1749081034524,-307.72805414,0.00017169,2]
[364360492,1749081034533,-430.0,0.00017169,2]
[364360493,1749081034543,-440.0,0.00017169,2]
[364360494,1749081034552,-300.0,0.00017169,2]
[364360495,1749081034561,-400.34518435,0.00017169,2]
[364360496,1749081034570,-450.70483438,0.00017169,2]
[364360497,1749081034583,-402.64732013,0.00017169,2]
[364360498,1749081034595,-431.75763091,0.00017169,2]
[364360499,1749081034604,-430.0,0.00017169,2]
[364360500,1749081034614,-430.0,0.00017169,2]
[364360501,1749081034623,-430.0,0.00017169,2]
[364360502,1749081034632,-430.0,0.00017169,2]
[364360503,1749081034641,-440.0,0.00017169,2]
[364360504,1749081034652,-440.0,0.00017169,2]
[364360505,1749081034661,-450.6961855,0.00017169,2]
[364360506,1749081034671,-401.17977441,0.00017169,2]
[364360507,1749081034681,-430.0,0.00017169,2]
[364360508,1749081034690,-440.0,0.00017169,2]
[364360509,1749081034700,-450.0,0.00017169,2]
[364360510,1749081034709,-440.0,0.00017169,2]
[364360511,1749081034719,-400.0,0.00017169,2]
[364360512,1749081034728,-440.0,0.00017169,2]
[364360513,1749081034737,-440.0,0.00017169,2]
[364360514,1749081034747,-440.0,0.00017169,2]
[364360515,1749081034757,-440.0,0.00017169,2]
[364360517,1749081034766,-440.0,0.00017169,2]
[364360519,1749081034775,-440.0,0.00017169,2]
[364360520,1749081034785,-440.0,0.00017169,2]
[364360521,1749081034794,-450.0,0.00017169,2]
[364360522,1749081034803,-400.0,0.00017169,2]
[364360523,1749081034814,-557.24848393,0.00017169,2]
[364360524,1749081034823,-440.0,0.00017169,2]
[364360525,1749081034833,-431.9115172,0.00017169,2]
[364360526,1749081034842,-440.0,0.00017169,2]
[364360527,1749081034851,-440.0,0.00017169,2]
[364360528,1749081034861,-310.0,0.00017169,2]
[364360529,1749081034870,-440.0,0.00017169,2]
[364360530,1749081034880,-440.0,0.00017169,2]
[364360531,1749081034889,-430.0,0.00017169,2]
[364360532,1749081034899,-546.38510746,0.00017169,2]
[364360533,1749081034909,-440.0,0.00017169,2]
[364360534,1749081034918,-348.31960802,0.00017169,2]
[364360535,1749081034928,-440.0,0.00017169,2]
[364360536,1749081034937,-430.0,0.00017169,2]
[364360537,1749081034947,-373.6481487,0.00017169,2]
[364360538,1749081034956,-430.0,0.00017169,2]
[364360539,1749081034967,-440.0,0.00017169,2]
[364360540,1749081034977,-400.44991057,0.00017169,2]
[364360541,1749081034987,-262.72723226,0.00017169,2]